Cogmind - Beta 16 @@@ ROGUE MODE // 2025.11.12 @ 21:30:05 Player: Mozco Result: Destroyed by GV-GOD(R) with Subdweller Laser Performance ------------- Evolutions (0) 0 Regions Visited (2) 400 Robots Destroyed (21) 105 Value Destroyed (825) 825 Prototype IDs (12) 240 Alien Tech Used (0) 0 Bonus (0) 0 TOTAL SCORE: 1570 Bonus ------- None Cogmind --------- Core Integrity 0/250 Matter 290/300 Energy 85/100 System Corruption 0% Temperature Cool (6) Movement Walking (260) Ox2 Location -10/Subcaves Parts ------- > --- POWER (1) -------- (None) > --- PROPULSION (2) --- Aluminum Leg > --- UTILITY (2) ------ Scrap Shield > --- WEAPON (2) ------- Heavy Assault Rifle Makeshift Axe > --- INVENTORY (5) ---- Huge Storage Unit Heavy Assault Rifle Heavy Assault Rifle Peak State ------------ > --- POWER ------------ Ion Engine > --- PROPULSION ------- Aluminum Leg Aluminum Leg > --- UTILITY ---------- Scrap Shield > --- WEAPON ----------- Heavy Assault Rifle Makeshift Axe > --- INVENTORY -------- Aluminum Leg Huge Storage Unit Subdweller Laser Heavy Assault Rifle Heavy Assault Rifle [Rating: 13] Favorites ----------- Power Ion Engine Engine Ion Engine Propulsion Aluminum Leg Leg Aluminum Leg Utility Scrap Shield Storage Huge Storage Unit Processor Improved Targeting Computer Protection Scrap Shield Weapon Heavy Assault Rifle Energy Gun Subdweller Laser Ballistic Gun Heavy Assault Rifle Slashing Weapon Makeshift Axe Build | -11 -10 -10 ------- Run | Yrd Mat Sub Slots Evolved . | . . . Power . | . . . Propulsion . | . . . Utility . | . . . Weapon . | . . . Parts Attached 20 | 6 6 8 Power 2 | 1 1 . Engine 2 | 1 1 . Core . | . . . Reactor . | . . . Propulsion 3 | 2 . 1 Treads . | . . . Leg 3 | 2 . 1 Wheel . | . . . Hover . | . . . Flight . | . . . Utility 6 | 1 2 3 Device . | . . . Storage 2 | 1 1 . Processor 1 | . . 1 Hackware . | . . . Protection 3 | . 1 2 Artifact . | . . . Weapon 9 | 2 3 4 Energy Gun 5 | 2 1 2 Energy Cannon . | . . . Ballistic Gun 3 | . 2 1 Ballistic Cannon . | . . . Launcher . | . . . Special Weapon . | . . . Impact Weapon . | . . . Slashing Weapon 1 | . . 1 Piercing Weapon . | . . . Special Melee Weapon . | . . . Unidentified Prototypes . | . . . Parts Lost 8 | . 2 6 Power 1 | . . 1 Propulsion 2 | . . 2 Utility 2 | . . 2 Weapon 3 | . 2 1 Highest Loss Streak 3 | . 2 3 To Critical Strikes . | . . . Average Backups 7 | 2 11 6 Power . | . . . Propulsion 1 | 1 3 1 Utility 2 | . 3 1 Weapon 3 | . 4 3 Tool/Special . | . . . Unused Backups 15 | . 4 11 Power . | . . . Propulsion 6 | . 4 2 Utility 4 | . . 4 Weapon 5 | . . 5 Tool/Special . | . . . Average Slot Usage (%) 88 | . 98 87 Engine 13 | . 14 13 Leg 27 | . 28 27 Storage 3 | . 14 2 Processor 1 | . . 1 Protection 12 | . 12 12 Energy Gun 4 | . 19 2 Ballistic Gun 16 | . 7 17 Slashing Weapon 6 | . . 7 Peak Build Rating 13 | 6 11 13 Average Rating 11 | 4 8 12 On Entrance 5 | . 6 11 Avg Prop Armor Cover (%) . | . . . Naked Turns . | . . . Heaviest Build 94 | 14 94 94 Greatest Support 20 | 20 20 20 Greatest Overweight (x) 4 | . 4 4 Average Overweight (x) 1 | . . 1 Largest Inventory Capacity 25 | 8 25 25 Average Capacity 9 | 7 16 9 Most Carried 19 | 6 19 16 Average Carried 7 | 2 11 6 Final Capacity 25 | 8 25 5 Final Carried 16 | 6 16 3 Class Distribution -------------------- 100% | Mutant Dominant Class ---------------- Mutant | -10/Materials Mutant | -10/Subcaves Resources | -11 -10 -10 ----------- Run | Yrd Mat Sub Matter Collected 711 | 210 60 441 Remotely . | . . . Salvage Created 1183 | . 334 849 Parts 55 | . 16 39 Haulers Intercepted . | . . . Recyclers Shooed . | . . . Parts Field Recycled . | . . . Retrieved Matter . | . . . Parts Self-Destructed 22 | . . 22 Prevented . | . . . Parts Restored . | . . . Kills | -11 -10 -10 ------- Run | Yrd Mat Sub Combat Hostiles Destroyed 19 | . 7 12 Melee 6 | . . 6 Guns 12 | . 6 6 AOE 1 | . 1 . Classes Destroyed 6 | . 1 5 Turret 2 | . . 2 Grunt 9 | . 7 2 Sentry 2 | . . 2 Artisan 1 | . . 1 Cobbler 1 | . . 1 Subdweller 8 | . . 8 Best Kill Streak 2 | . 2 2 Combat Bots Only 2 | . 2 2 Max Kills in Single Turn 1 | . 1 1 Gunslinging . | . . . Exploded 1 | . 1 . Melee 1 | . . 1 Uniques/NPCs Destroyed . | . . . Combat | -11 -10 -10 -------- Run | Yrd Mat Sub Hostile Shots Fired 194 | . 43 151 Missed 76 | . 16 60 Hits 118 | . 27 91 Projectile 118 | . 27 91 AOE 1 | . . 1 Critical Strikes 2 | . 1 1 Damage Taken 1793 | . 327 1466 Core 260 | . 56 204 Absorbed by Shields . | . . . Core Remaining (%) 100 | 100 . . Volleys Fired 149 | . 26 123 Largest 2 | . 2 2 Hottest 96 | . 96 83 Shots Fired 210 | . 46 164 Gun 210 | . 46 164 Cannon . | . . . Launcher . | . . . Special . | . . . Kinetic 85 | . 11 74 Thermal 94 | . 4 90 Explosive . | . . . Electromagnetic 31 | . 31 . Robot Hit Streak 10 | . 5 10 Robot Miss Streak 5 | . 5 4 Penetration Max . | . . . Secondary Targets 1 | . 1 . Max Gunslinging Chain 1 | . 1 . Shots Hit Robots 102 | . 26 76 Core Hits 40 | . 13 27 Critical Kills 1 | . . 1 Critical Parts Destroyed . | . . . Critical Strikes 2 | . 1 1 Destroy 1 | . . 1 Corrupt 1 | . 1 . Melee Attacks 266 | . . 266 Impact . | . . . Slashing 266 | . . 266 Piercing . | . . . Sneak Attacks 2 | . . 2 Combat Hostiles . | . . . Follow-up Attacks . | . . . Damage Inflicted 2607 | . 492 2115 Guns 1123 | . 395 728 Cannons . | . . . Explosions 97 | . 97 . Melee 1387 | . . 1387 Ramming . | . . . Kinetic 680 | . 95 585 Thermal 284 | . 141 143 Explosive . | . . . Electromagnetic 256 | . 256 . Impact . | . . . Slashing 1387 | . . 1387 Piercing . | . . . Highest Corruption . | . . . Average Corruption . | . . . Corruption Purged . | . . . Corruption Blocked . | . . . Overload Shots . | . . . Overflow Damage 116 | . . 116 Projectiles . | . . . Explosions . | . . . Melee 116 | . . 116 Knockbacks . | . . . Impact . | . . . Kinetic . | . . . Secondary . | . . . Self-Inflicted Damage . | . . . Shots . | . . . Rammed . | . . . Targets Rammed . | . . . Kicked . | . . . Crushed . | . . . Highest Temperature 328 | . 328 5 Average Temperature 133 | . 135 5 Received Heat Transfer 648 | . 204 444 Effects 4 | . 4 . Energy Bleed 2 | . 2 . Matter Decay 1 | . 1 . Short Circuit 1 | . 1 . Siege Activations . | . . . Martial Activations . | . . . Shielding Activations . | . . . Robots Disrupted . | . . . Combat Hostiles . | . . . Robots Corrupted . | . . . Combat Hostiles . | . . . Parts Fried . | . . . Impact Corruptions . | . . . Robots Melted . | . . . Combat Hostiles . | . . . Parts Melted . | . . . Heat Transferred 386 | . 211 175 Parts Sabotaged . | . . . Parts Stolen . | . . . Parts Stripped . | . . . Power Chain Reactions 1 | . 1 . Alert | -11 -10 -10 ------- Run | Yrd Mat Sub Maximum Alert Level . | . . . Low Security (%) 100 | 100 100 . Level 1 . | . . . Level 2 . | . . . Level 3 . | . . . Level 4 . | . . . Level 5 . | . . . High Security . | . . . Max Security . | . . . Peak Influence 60 | . 60 . Initial . | . . . Average 18 | . 21 . Influence Increases 392 | . 187 205 Destroy 0b10 Robot/C 260 | . 140 120 Destroy Leader 40 | . 30 10 Disable Machine 15 | . 15 . Destroy Structure 2 | . 2 . Lose Combat Pursuer 75 | . . 75 Influence Decreases 392 | . 179 213 Entered New Map 4 | . . 4 Time Decay 338 | . 169 169 Lost Part 50 | . 10 40 Squads Dispatched 1 | . 1 . Investigation . | . . . Extermination . | . . . Reinforcement 1 | . 1 . Assault . | . . . Garrison . | . . . Intercept . | . . . Searches Triggered . | . . . Construction Impeded . | . . . Haulers Reinforced . | . . . Active Scanning Responses . | . . . Cargo Convoy Interrupts . | . . . Stealth | -11 -10 -10 --------- Run | Yrd Mat Sub Distress Signals . | . . . Communications Jammed . | . . . Distress Signals . | . . . Times Spotted 33 | . 7 26 Peak Tracking Total 7 | . 3 7 Tactical Retreats 3 | . . 3 Traps | -11 -10 -10 ------- Run | Yrd Mat Sub Traps Triggered . | . . . Indirectly . | . . . Trap Hack Attempts . | . . . Triggered . | . . . Disarmed . | . . . Reprogrammed . | . . . Reused . | . . . Traps Extracted . | . . . Installed . | . . . Triggered . | . . . Machines | -11 -10 -10 ---------- Run | Yrd Mat Sub Machines Disabled 2 | . 1 1 Max in Single Turn 1 | . 1 1 Machines Repaired . | . . . Machines Dismantled . | . . . Machines Sabotaged . | . . . Overloaded Fab Kills . | . . . Hacking | -11 -10 -10 --------- Run | Yrd Mat Sub Machines Accessed 2 | . 1 1 Terminals 1 | . 1 . Fabricators . | . . . Repair Stations . | . . . Recycling Units . | . . . Scanalyzers . | . . . Garrison Access . | . . . Total Hacks 4 | . 3 1 Successful 2 | . 1 1 Failed 2 | . 2 . Catastrophic 1 | . 1 . Database Lockouts . | . . . Manual 3 | . 3 . Terminals 3 | . 3 . Fabricators . | . . . Repair Stations . | . . . Recycling Units . | . . . Scanalyzers . | . . . Garrison Access . | . . . Terminal Hacks 1 | . . 1 Proto ID Catalog 1 | . . 1 Fabricator Hacks . | . . . Repair Station Hacks . | . . . Recycling Unit Hacks . | . . . Scanalyzer . | . . . Garrison Access Hacks . | . . . Unauthorized Hacks 1 | . 1 . Terminals 1 | . 1 . Botnet 1 | . 1 . Fabricators . | . . . Repair Stations . | . . . Recycling Units . | . . . Scanalyzers . | . . . Garrison Access . | . . . Data Cores Recovered . | . . . Used . | . . . Hacking Detections 1 | . 1 . Full Trace Events . | . . . Feedback Events . | . . . Feedback Blocked . | . . . Robot Schematics Acquired . | . . . Robots Built . | . . . Authchips . | . . . Time . | . . . Total Robot Build Rating . | . . . Part Schematics Acquired . | . . . Parts Built . | . . . Authchips . | . . . Time . | . . . Total Part Build Rating . | . . . Part Studies Acquired . | . . . Parts Repaired . | . . . Time . | . . . Parts Recycled . | . . . Recycled Matter . | . . . Retrieved Matter . | . . . Retrieved Components . | . . . Parts Scanalyzed . | . . . Part Schematics Acquired . | . . . Parts Damaged . | . . . Bothacking | -11 -10 -10 ------------ Run | Yrd Mat Sub Used RIF Installer . | . . . Robots Hacked . | . . . Non-combat . | . . . Combat . | . . . Robot Hacks Applied . | . . . Relay Couplers Released . | . . . Fabnet Peak Effective % . | . . . Robots Rewired . | . . . Allies Hacked . | . . . Hacks Repelled . | . . . Allies | -11 -10 -10 -------- Run | Yrd Mat Sub Total Allies . | . . . Largest Group . | . . . Highest-Rated Group . | . . . Highest-Rated Ally . | . . . Total Orders . | . . . Ally Attacks . | . . . Total Damage . | . . . Kills . | . . . Allies Corrupted . | . . . Allies Melted . | . . . Intel | -11 -10 -10 ------- Run | Yrd Mat Sub Active Infowar (turns) . | . . . Robot Analysis Total . | . . . Derelict Logs Recovered . | . . . Drone Launches . | . . . Drone Recoveries . | . . . Exploration | -11 -10 -10 ------------- Run | Yrd Mat Sub Turns Passed 5492 | 87 467 4938 Spaces Moved 1849 | 62 202 1585 Core 3 | 3 . . Treads . | . . . Legs 1846 | 59 202 1585 Wheels . | . . . Hover . | . . . Flight . | . . . Fastest Speed 50 | 50 120 120 Average Speed 213 | 116 183 220 Slowest Speed 400 | 120 400 400 Overloaded Moves . | . . . Propulsion Burnouts . | . . . Robots Hopped . | . . . Potential Cave-ins 3 | . . 3 Cave-ins Triggered . | . . . Exploration Rate (%) 31 | 4 33 56 Regions Visited 2 Branch Regions 1 Pre-discovered Areas . | . . . Known Exits Taken . | . . . Unknown Exits Taken 2 | 1 1 . Scrap Searched 2 | . . 2 Spaces Dug 108 | . . 108 Terrain Destroyed 137 | . 2 135 Melee 101 | . . 101 Projectile 34 | . . 34 AOE 2 | . 2 . Terrain Rammed . | . . . Walls Destroyed . | . . . Machines Disabled . | . . . Actions | -11 -10 -10 --------- Run | Yrd Mat Sub Total 2927 | 73 255 2599 Wait 578 | . . 578 Move 1847 | 61 201 1585 Hop . | . . . Pick Up 28 | 6 17 5 Fast Attach 10 | 6 1 3 Attach 6 | . 3 3 Detach 1 | . . 1 Swap 9 | . 2 7 Drop 23 | . 5 18 Fire 149 | . 26 123 Melee 266 | . . 266 Ram . | . . . Kick . | . . . Crush . | . . . Escape Stasis . | . . . Rewire . | . . . Trap . | . . . Miscellaneous 10 | . . 10 Route ------- -11/Scrapyard -10/Materials (discovered 2 exits: [*Min] / *Sub) -10/Subcaves (discovered 1 exit: [*Rec]) History --------- Turn | Location | Event 6 | -11/Scrapyard | Discovered new exit (range 15) 88 | -11/Scrapyard | Entered Materials 216 | -10/Materials | Discovered new exit (range 14) 312 | -10/Materials | Build established: Mutant 523 | -10/Materials | Discovered new exit (range 9) 555 | -10/Materials | Entered Subcaves 721 | -10/Subcaves | Shifting Twisted Machinery released Mak. Axe 1150 | -10/Subcaves | A swath of the cavern ceiling suddenly collapsed 1561 | -10/Subcaves | Shifting Twisted Machinery released Mak. System Shield 2332 | -10/Subcaves | A swath of the cavern ceiling suddenly collapsed 2422 | -10/Subcaves | Shifting Twisted Machinery released Sub. Power Source 2437 | -10/Subcaves | Shifting Twisted Machinery released Sub. Laser 2742 | -10/Subcaves | Core integrity fell below 50% 2827 | -10/Subcaves | Visited 4L-MR0's lab 3444 | -10/Subcaves | Ambushed by Subdwellers from Twisted Machinery 3889 | -10/Subcaves | Discovered new exit (range 16) 4749 | -10/Subcaves | Ambushed by Subdweller buried in earth 4749 | -10/Subcaves | Ambushed by Subdweller buried in earth 5476 | -10/Subcaves | Core integrity fell below 20% 5493 | -10/Subcaves | Destroyed by GV-GOD(R) with Subdweller Laser Last Messages --------------- 04828_ Subatomizers dissect the Sub. Monowheel. 04877_ Scrap Shield Fragment affixed to Scrap Shield (+34). 05043_ Aluminum Leg destroyed. 05043_ Destroyed Sub. Optics. 05054_ VF-IC5(R) destroyed. 05066_ Subatomizers dissect the Sub. Monowheel. 05147_ Acquired 10 matter. 05239_ Scrap Shield Fragment affixed to Scrap Shield (+40). 05243_ Scrap Shield Fragment affixed to Scrap Shield (+42). 05317_ Searching scrap... 05317_ Found Flamer. 05317_ Found 49 Matter. 05448_ IL-TDR(R) destroyed. 05462_ JZ-PJW(R) destroyed. 05468_ Aluminum Leg destroyed. 05469_ GV-GOD(R) affixes Scrap Shield Fragment to Scrap Shield. 05476_ Ion Engine destroyed. 05480_ GV-GOD(R) affixes Scrap Shield Fragment to Scrap Shield. 05490_ Scrap Shield destroyed. 05491_ Acquired Scrap Shield. Map ----- +----------------------------------------------------+ | ??????????????????????????????????### #??????????? | | ???????????????????????????????????## #??????????? | | ???????????????????????????????????# ###????????? | | ?????????????????????????????????###"^ "#??####### | | ????????????????????????????????##"" "#??#""" " | | ????????????????????????????????# " ##??#" | | ???????????????????????????????## "%=*!"#??#" % | | ???????????????????????????????# %["#?##"" | | ???????????????????????????????# =##?#< % | | ???????????????????????????????# " "#??##"" | | ???????????????????????????????# #"""#???#" | | ??????????????????????????????# # ### #???#" | | ??????????????????????????????#####??###???#""" " | | ???????????????????????????????????????????####### | | ?????????????????????????????? ??????????????????? | | ?????????????????????????????&#??????????????????? | | ???????????????????????????## ???????????????????? | | ???????? "????????????????? # ??????#????????????? | | ????????# ##??##???????????